Cogmind - Beta 17 @@@ ROGUE MODE // 2026.08.17 @ 19:28:31 Player: LandRaider Result: Destroyed by B-75 Beast with Heavy Machine Gun Performance ------------- Evolutions (4) 2000 Regions Visited (6) 1200 Robots Destroyed (69) 345 Value Destroyed (1928) 1928 Prototype IDs (5) 100 Alien Tech Used (0) 0 Bonus (48) 48 TOTAL SCORE: 5621 Bonus ------- Follower Combat Kills 74 Friendly Fire -26 Cogmind --------- Core Integrity 0/850 Matter 300/300 Energy 100/100 System Corruption 0% Temperature Cool (18) Movement Core (700) Ox13 Location -6/Extension Parts ------- > --- POWER (2) -------- (None) > --- PROPULSION (4) --- (None) > --- UTILITY (5) ------ Advanced Heat Sink High-capacity Storage Unit Enhanced Optical Array Signal Interpreter > --- WEAPON (4) ------- (None) > --- INVENTORY (20) --- Improved Deuterium Engine Light Angular Momentum Engine Heat Sink Advanced Heat Sink Advanced Heat Sink Coolant Injector Improved Energy Well (400) Structural Scanner Improved Trap Scanner Machine Analyzer Enhanced Optical Array Sensor Array Terrain Scanner ECM Suite Improved Light Armor Plating Dynamic Insulation System Drone Bay (2/2) Axe Peak State ------------ > --- POWER ------------ Improved Deuterium Engine Light Fission Core > --- PROPULSION ------- Carbon-fiber Leg Carbon-fiber Leg Armored Leg > --- UTILITY ---------- Advanced Heat Sink High-capacity Storage Unit Enhanced Optical Array Signal Interpreter System Restoration Module > --- WEAPON ----------- High-powered Shock Rifle Gauss Rifle Flak Gun Mini Assault Cannon > --- INVENTORY -------- Improved Deuterium Engine Light Angular Momentum Engine Light Treads Heat Sink Advanced Heat Sink Advanced Heat Sink Coolant Injector Improved Energy Well Structural Scanner Improved Trap Scanner Machine Analyzer Enhanced Optical Array Sensor Array Terrain Scanner ECM Suite Improved Light Armor Plating Dynamic Insulation System Drone Bay Axe [Rating: 60] Favorites ----------- Power Improved Deuterium Engine Engine Improved Deuterium Engine Power Core Enhanced Nuclear Core Propulsion Light Treads Treads Light Treads Leg Carbon-fiber Leg Wheel Wheel Utility High-capacity Storage Unit Device Advanced Heat Sink Storage High-capacity Storage Unit Processor Signal Interpreter Protection Light Armor Plating Weapon Light Assault Rifle Energy Gun Medium Laser Ballistic Gun Light Assault Rifle Ballistic Cannon Mini Assault Cannon Launcher Heavy Rocket Launcher Special Weapon Mining Laser Build | -11 -10 -10 -10 -9 -6 -6 ------- Run | Yrd Mat Min Sub Scr Fac Ext Slots Evolved 8 | . . . . . 8 . Power 1 | . . . . . 1 . Propulsion 2 | . . . . . 2 . Utility 3 | . . . . . 3 . Weapon 2 | . . . . . 2 . Parts Attached 69 | 9 8 3 . 4 19 26 Power 11 | 1 1 1 . 1 4 3 Engine 7 | 1 1 1 . 1 2 1 Core 4 | . . . . . 2 2 Reactor . | . . . . . . . Propulsion 20 | 4 1 1 . 2 3 9 Treads 7 | 2 . . . 2 2 1 Leg 4 | . . . . . . 4 Wheel 9 | 2 1 1 . . 1 4 Hover . | . . . . . . . Flight . | . . . . . . . Utility 22 | 2 5 . . . 6 9 Device 12 | 1 1 . . . 4 6 Storage 5 | 1 3 . . . . 1 Processor 3 | . 1 . . . 2 . Hackware . | . . . . . . . Protection 2 | . . . . . . 2 Artifact . | . . . . . . . Weapon 16 | 2 1 1 . 1 6 5 Energy Gun 4 | 2 . . . . 1 1 Energy Cannon . | . . . . . . . Ballistic Gun 8 | . . 1 . 1 3 3 Ballistic Cannon 2 | . . . . . 1 1 Launcher 1 | . . . . . 1 . Special Weapon 1 | . 1 . . . . . Impact Weapon . | . . . . . . . Slashing Weapon . | . . . . . . . Piercing Weapon . | . . . . . . . Special Melee Weapon . | . . . . . . . Unidentified Prototypes 3 | . . . . . 2 1 Parts Lost 38 | . . 2 . . 8 28 Power 7 | . . 1 . . 1 5 Propulsion 12 | . . . . . 2 10 Utility 4 | . . . . . 1 3 Weapon 15 | . . 1 . . 4 10 Highest Loss Streak 11 | . . 1 . . 3 11 To Critical Strikes . | . . . . . . . Average Backups 17 | 4 11 18 18 19 14 18 Power 1 | . 1 . . . . 3 Propulsion 2 | 3 3 3 4 3 . . Utility 8 | . 3 6 7 7 8 13 Weapon 5 | . 3 7 7 9 4 1 Tool/Special . | . . . . . . . Unused Backups 17 | . 3 . . 1 . 13 Power 3 | . 1 . . . . 2 Propulsion 2 | . 2 . . . . . Utility 10 | . . . . . . 10 Weapon 2 | . . . . 1 . 1 Tool/Special . | . . . . . . . Average Slot Usage (%) 89 | . 99 99 100 82 92 83 Engine 10 | . 13 13 14 14 5 3 Core 2 | . . . . . 4 6 Treads 15 | . 9 14 14 25 24 2 Leg 2 | . . . . . . 10 Wheel 6 | . 18 14 14 2 . 5 Device 5 | . 11 . . . 12 9 Storage 11 | . 14 14 14 14 6 6 Processor 11 | . 2 14 14 14 12 13 Energy Gun 7 | . 21 21 14 . 1 2 Ballistic Gun 6 | . . 6 14 1 14 12 Ballistic Cannon 2 | . . . . . 4 6 Special Weapon 4 | . 6 . . 10 . . Peak Build Rating 60 | 9 9 9 8 14 42 60 Average Rating 21 | 5 8 7 8 11 34 44 On Entrance 12 | . 9 8 8 8 12 42 Avg Prop Armor Cover (%) 14 | . 12 14 14 20 21 10 Naked Turns . | . . . . . . . Heaviest Build 76 | 13 49 49 46 53 67 76 Greatest Support 80 | 40 26 16 10 40 80 66 Greatest Overweight (x) 18 | . 3 4 4 4 6 18 Average Overweight (x) 1 | . 1 3 4 1 . 1 Largest Inventory Capacity 20 | 8 20 20 20 20 20 20 Average Capacity 19 | 7 14 20 20 20 20 20 Most Carried 20 | 8 17 20 18 20 19 20 Average Carried 17 | 4 11 18 18 19 14 18 Final Capacity 20 | 8 20 20 20 20 20 20 Final Carried 20 | 8 17 18 18 20 18 18 Class Distribution -------------------- 63% | Mutant 20% | Scavenger-Skirmisher 9% | Skirmisher 4% | Scavenger-Mutant Dominant Class ---------------- Mutant | -10/Materials Mutant | -10/Mines Mutant | -10/Subcaves Mutant | -9/Scraptown Skirmisher | -6/Factory Scavenger-Skirmisher | -6/Extension Resources | -11 -10 -10 -10 -9 -6 -6 ----------- Run | Yrd Mat Min Sub Scr Fac Ext Matter Collected 2273 | 290 143 113 . 76 661 990 Remotely . | . . . . . . . Salvage Created 2188 | 152 337 294 . . 627 778 Parts 123 | 12 18 27 . . 32 34 Haulers Intercepted 2 | . 2 . . . . . Recyclers Shooed 3 | 1 . . . . 1 1 Parts Field Recycled . | . . . . . . . Retrieved Matter . | . . . . . . . Parts Self-Destructed . | . . . . . . . Prevented . | . . . . . . . Parts Restored . | . . . . . . . Kills | -11 -10 -10 -10 -9 -6 -6 ------- Run | Yrd Mat Min Sub Scr Fac Ext Combat Hostiles Destroyed 42 | . 6 14 . . 10 12 Melee 2 | . . . . . 2 . Guns 28 | . 6 14 . . 5 3 Cannons 12 | . . . . . 3 9 Classes Destroyed 13 | 2 4 1 . . 4 2 Worker 6 | . . 1 . . 3 2 Builder 5 | . . . . . 3 2 Tunneler 4 | 3 . 1 . . . . Hauler 2 | . 2 . . . . . Recycler 4 | 1 . . . . 1 2 Operator 1 | . . . . . 1 . Watcher 5 | . 3 . . . 1 1 Swarmer 15 | . 3 12 . . . . Grunt 18 | . 3 2 . . 8 5 Duelist 3 | . . . . . . 3 Sentry 3 | . . . . . 1 2 Hunter 2 | . . . . . . 2 Programmer 1 | . . . . . 1 . Best Kill Streak 4 | 4 4 3 . . 4 3 Combat Bots Only 4 | . 4 3 . . 3 2 Max Kills in Single Turn 2 | 1 1 2 . . 2 2 Gunslinging . | . . . . . . . Exploded . | . . . . . . . Melee 1 | . . . . . 1 . Uniques/NPCs Destroyed . | . . . . . . . Combat | -11 -10 -10 -10 -9 -6 -6 -------- Run | Yrd Mat Min Sub Scr Fac Ext Hostile Shots Fired 431 | . 25 49 . . 84 273 Missed 126 | . 7 7 . . 19 93 Hits 305 | . 18 42 . . 65 180 Melee 9 | . . . . . . 9 Projectile 296 | . 18 42 . . 65 171 Critical Strikes 7 | . . . . . 3 4 Damage Taken 4905 | . 185 363 . . 1221 3136 Core 994 | . 37 92 . . 128 737 Absorbed by Shields . | . . . . . . . Core Remaining (%) 74 | 100 . . . 48 . . Volleys Fired 195 | 7 35 33 . . 48 72 Largest 4 | 2 2 2 . . 4 4 Hottest 156 | 100 100 100 . . 133 156 Shots Fired 485 | 14 62 66 . . 146 197 Gun 354 | 14 55 66 . . 98 121 Cannon 117 | . . . . . 41 76 Launcher 4 | . . . . . 4 . Special 10 | . 7 . . . 3 . Kinetic 323 | . . 18 . . 119 186 Thermal 156 | 14 62 48 . . 23 9 Explosive 4 | . . . . . 4 . Electromagnetic 2 | . . . . . . 2 Robot Hit Streak 15 | 6 15 6 . . 12 11 Robot Miss Streak 10 | 1 4 3 . . 4 10 Penetration Max . | . . . . . . . Secondary Targets . | . . . . . . . Shots Hit Robots 308 | 8 36 34 . . 93 137 Core Hits 141 | 5 15 19 . . 42 60 Critical Kills 4 | . . . . . 3 1 Critical Parts Destroyed 3 | . . . . . 1 2 Critical Strikes 17 | 1 1 5 . . 5 5 Burn 8 | 1 1 5 . . 1 . Destroy 7 | . . . . . 4 3 Blast 2 | . . . . . . 2 Melee Attacks . | . . . . . . . Impact . | . . . . . . . Slashing . | . . . . . . . Piercing . | . . . . . . . Sneak Attacks . | . . . . . . . Combat Hostiles . | . . . . . . . Follow-up Attacks . | . . . . . . . Damage Inflicted 4948 | 98 463 412 . . 1787 2188 Guns 2439 | 98 463 412 . . 740 726 Cannons 2047 | . . . . . 585 1462 Explosions 444 | . . . . . 444 . Melee . | . . . . . . . Ramming 18 | . . . . . 18 . Kinetic 3376 | . . 48 . . 1185 2143 Thermal 1371 | 98 463 364 . . 401 45 Explosive 183 | . . . . . 183 . Electromagnetic . | . . . . . . . Impact . | . . . . . . . Slashing . | . . . . . . . Piercing . | . . . . . . . Highest Corruption 2 | . 1 1 1 1 2 2 Average Corruption 1 | . 1 1 1 1 1 1 Corruption Purged 3 | . . . . . 1 2 Corruption Blocked . | . . . . . . . Effects 50 | . 1 8 2 14 6 19 Message Errors 15 | . 1 3 . 4 . 7 Matter Fused 12 | . . 3 2 5 1 1 Heat Flow Errors 7 | . . 1 . 2 1 3 Energy Discharges 9 | . . . . 1 2 6 Data Loss (minor) 5 | . . . . 2 2 1 Alerts 1 | . . 1 . . . . Weapon Failures 1 | . . . . . . 1 Overload Shots . | . . . . . . . Overflow Damage 131 | . . . . . 127 4 Projectiles 11 | . . . . . 7 4 Explosions 120 | . . . . . 120 . Melee . | . . . . . . . Knockbacks 21 | . . . . . 9 12 Impact . | . . . . . . . Kinetic 21 | . . . . . 9 12 Secondary . | . . . . . . . Self-Inflicted Damage 88 | . . . . . 88 . Shots 1 | . . . . . 1 . Rammed 3 | . . . . . 3 . Targets Rammed 5 | . . . . . 5 . Kicked . | . . . . . . . Crushed 2 | . . . . . 2 . Highest Temperature 369 | 195 369 321 . 192 230 259 Average Temperature 82 | 98 89 76 . 95 83 73 Received Heat Transfer 1197 | . 63 48 . . 555 531 Effects 3 | . . 1 . . 2 . Energy Bleed 1 | . . 1 . . . . Interference 2 | . . . . . 2 . Siege Activations . | . . . . . . . Martial Activations . | . . . . . . . Shielding Activations . | . . . . . . . Robots Disrupted . | . . . . . . . Combat Hostiles . | . . . . . . . Robots Corrupted . | . . . . . . . Combat Hostiles . | . . . . . . . Parts Fried . | . . . . . . . Impact Corruptions . | . . . . . . . Robots Melted 1 | . 1 . . . . . Combat Hostiles . | . . . . . . . Parts Melted 9 | 1 2 5 . . . 1 Heat Transferred 3954 | 370 1443 1443 . . 598 100 Parts Sabotaged . | . . . . . . . Parts Stolen . | . . . . . . . Parts Stripped . | . . . . . . . Power Chain Reactions . | . . . . . . . Alert | -11 -10 -10 -10 -9 -6 -6 ------- Run | Yrd Mat Min Sub Scr Fac Ext Maximum Alert Level 1 | . . . . . 1 . Low Security (%) 93 | 100 100 100 . . 67 100 Level 1 6 | . . . . . 32 . Level 2 . | . . . . . . . Level 3 . | . . . . . . . Level 4 . | . . . . . . . Level 5 . | . . . . . . . High Security . | . . . . . . . Max Security . | . . . . . . . Peak Influence 308 | 10 154 142 . . 308 97 Initial 97 | . . 7 . . . 97 Average 69 | 1 49 57 . . 196 17 Influence Increases 1764 | 20 293 400 . . 659 392 Destroy 0b10 Robot/C 880 | . 120 280 . . 200 280 Destroy 0b10 Robot/NC 135 | 20 25 10 . . 45 35 Destroy Leader 194 | . 40 50 . . 52 52 Allied During Kill 8 | . . . . . . 8 Successful Hack 25 | . 11 . . . 14 . Select Force Hacks 30 | . 30 . . . . . Disable Machine 285 | . 15 . . . 270 . Destroy Structure 87 | . 7 . . . 63 17 Lose Combat Pursuer 120 | . 45 60 . . 15 . Influence Decreases 1764 | 20 273 393 27 . 460 591 Entered New Map 130 | . . 13 15 . . 102 Time Decay 1368 | 20 273 360 12 . 380 323 Lost Part 217 | . . 20 . . 80 117 Lost Ally 49 | . . . . . . 49 Squads Dispatched 12 | . 2 . . . 7 3 Investigation 3 | . 1 . . . 1 1 Extermination 1 | . . . . . 1 . Reinforcement 5 | . 1 . . . 2 2 Assault . | . . . . . . . Garrison 3 | . . . . . 3 . Intercept . | . . . . . . . Searches Triggered . | . . . . . . . Construction Impeded 4 | . . . . . 2 2 Haulers Reinforced . | . . . . . . . Active Scanning Responses . | . . . . . . . Cargo Convoy Interrupts . | . . . . . . . Stealth | -11 -10 -10 -10 -9 -6 -6 --------- Run | Yrd Mat Min Sub Scr Fac Ext Distress Signals 2 | . 1 . . . . 1 Communications Jammed . | . . . . . . . Distress Signals . | . . . . . . . Times Spotted 66 | . 10 18 1 . 15 22 Peak Tracking Total 6 | . 6 3 1 . 3 4 Tactical Retreats 6 | . 2 3 . . 1 . Traps | -11 -10 -10 -10 -9 -6 -6 ------- Run | Yrd Mat Min Sub Scr Fac Ext Traps Triggered 5 | . 3 . . . . 2 Indirectly . | . . . . . . . Trap Hack Attempts . | . . . . . . . Triggered . | . . . . . . . Disarmed . | . . . . . . . Reprogrammed . | . . . . . . . Reused . | . . . . . . . Traps Extracted . | . . . . . . . Installed . | . . . . . . . Triggered . | . . . . . . . Machines | -11 -10 -10 -10 -9 -6 -6 ---------- Run | Yrd Mat Min Sub Scr Fac Ext Machines Disabled 20 | . 1 . . . 18 1 Max in Single Turn 15 | . 1 . . . 15 1 Machines Repaired . | . . . . . . . Machines Dismantled . | . . . . . . . Machines Sabotaged . | . . . . . . . Overloaded Fab Kills . | . . . . . . . Hacking | -11 -10 -10 -10 -9 -6 -6 --------- Run | Yrd Mat Min Sub Scr Fac Ext Machines Accessed 20 | . 6 1 . 2 5 6 Terminals 15 | . 4 1 . . 4 6 Fabricators . | . . . . . . . Repair Stations . | . . . . . . . Recycling Units 3 | . 2 . . . 1 . Scanalyzers . | . . . . . . . Garrison Access . | . . . . . . . Total Hacks 59 | . 15 3 . 18 11 12 Successful 36 | . 10 1 . 18 3 4 Failed 23 | . 5 2 . . 8 8 Catastrophic 2 | . . . . . 1 1 Database Lockouts . | . . . . . . . Manual 22 | . 9 2 . . 7 4 Terminals 33 | . 10 3 . . 8 12 Fabricators . | . . . . . . . Repair Stations . | . . . . . . . Recycling Units 8 | . 5 . . . 3 . Scanalyzers . | . . . . . . . Garrison Access . | . . . . . . . Terminal Hacks 27 | . 4 1 . 18 1 3 Record 22 | . 2 1 . 18 . 1 Prototype ID Bank 1 | . 1 . . . . . Open Door 3 | . . . . . 1 2 Zone Layout 1 | . 1 . . . . . Fabricator Hacks . | . . . . . . . Repair Station Hacks . | . . . . . . . Recycling Unit Hacks 1 | . 1 . . . . . Report Inventory 1 | . 1 . . . . . Scanalyzer . | . . . . . . . Garrison Access Hacks . | . . . . . . . Unauthorized Hacks 8 | . 5 . . . 2 1 Terminals 6 | . 3 . . . 2 1 Botnet 6 | . 3 . . . 2 1 Fabricators . | . . . . . . . Repair Stations . | . . . . . . . Recycling Units 2 | . 2 . . . . . Monitor 1 | . 1 . . . . . Tunnel 1 | . 1 . . . . . Scanalyzers . | . . . . . . . Garrison Access . | . . . . . . . Data Cores Recovered . | . . . . . . . Used . | . . . . . . . Hacking Detections 14 | . 3 1 . . 4 6 Full Trace Events 3 | . 1 . . . 1 1 Feedback Events 1 | . . . . . 1 . Corruption 1 | . . . . . 1 . Feedback Blocked . | . . . . . . . Robot Schematics Acquired . | . . . . . . . Robots Built . | . . . . . . . Authchips . | . . . . . . . Time . | . . . . . . . Total Robot Build Rating . | . . . . . . . Part Schematics Acquired . | . . . . . . . Parts Built . | . . . . . . . Authchips . | . . . . . . . Time . | . . . . . . . Total Part Build Rating . | . . . . . . . Part Studies Acquired . | . . . . . . . Parts Repaired . | . . . . . . . Time . | . . . . . . . Parts Recycled . | . . . . . . . Recycled Matter . | . . . . . . . Retrieved Matter . | . . . . . . . Retrieved Components . | . . . . . . . Parts Scanalyzed . | . . . . . . . Part Schematics Acquired . | . . . . . . . Parts Damaged . | . . . . . . . Bothacking | -11 -10 -10 -10 -9 -6 -6 ------------ Run | Yrd Mat Min Sub Scr Fac Ext Used RIF Installer . | . . . . . . . Robots Hacked . | . . . . . . . Non-combat . | . . . . . . . Combat . | . . . . . . . Robot Hacks Applied . | . . . . . . . Relay Couplers Released . | . . . . . . . Fabnet Peak Effective % . | . . . . . . . Robots Rewired . | . . . . . . . Allies Hacked . | . . . . . . . Hacks Repelled . | . . . . . . . Allies | -11 -10 -10 -10 -9 -6 -6 -------- Run | Yrd Mat Min Sub Scr Fac Ext Total Allies 3 | . . . . . . 3 Largest Group 2 | . . . . . . 2 Highest-Rated Group 59 | . . . . . . 59 Highest-Rated Ally 39 | . . . . . . 39 Total Orders . | . . . . . . . Ally Attacks 23 | . . . . . . 23 Total Damage 380 | . . . . . . 380 Kills 2 | . . . . . . 2 Allies Corrupted . | . . . . . . . Allies Melted . | . . . . . . . Intel | -11 -10 -10 -10 -9 -6 -6 ------- Run | Yrd Mat Min Sub Scr Fac Ext Active Infowar (turns) 3132 | 16 733 . . . 885 1498 Optics 2382 | . . . . . 884 1498 Sensors 925 | . . . . . 885 40 Terrain 186 | 16 170 . . . . . Structural 601 | . . . . . . 601 Traps 103 | . . . . . . 103 Seismic 936 | . 563 . . . 373 . Robot Analysis Total . | . . . . . . . Derelict Logs Recovered 2 | . . 1 1 . . . Drone Launches . | . . . . . . . Drone Recoveries . | . . . . . . . Exploration | -11 -10 -10 -10 -9 -6 -6 ------------- Run | Yrd Mat Min Sub Scr Fac Ext Turns Passed 6513 | 99 909 874 156 2080 897 1498 Spaces Moved 3299 | 56 607 522 112 923 368 711 Core 18 | 4 . . . . . 14 Treads 1047 | 3 22 . . 706 314 2 Legs 326 | . . . . . . 326 Wheels 1908 | 49 585 522 112 217 54 369 Hover . | . . . . . . . Flight . | . . . . . . . Fastest Speed 50 | 50 90 140 140 140 160 95 Average Speed 167 | 90 118 142 140 224 167 165 Slowest Speed 950 | 160 320 145 140 250 250 950 Overloaded Moves . | . . . . . . . Propulsion Burnouts . | . . . . . . . Robots Hopped . | . . . . . . . Potential Cave-ins . | . . . . . . . Cave-ins Triggered . | . . . . . . . Exploration Rate (%) 43 | 3 76 95 11 57 11 48 Regions Visited 6 Branch Regions 4 Pre-discovered Areas 4 | . 1 1 1 1 . . Known Exits Taken 5 | . 1 1 1 1 1 . Unknown Exits Taken 1 | 1 . . . . . . Scrap Searched 3 | . . 1 . 2 . . Spaces Dug 6 | . 6 . . . . . Terrain Destroyed 84 | . 6 . . . 69 9 Melee . | . . . . . . . Projectile 18 | . 6 . . . 3 9 AOE 66 | . . . . . 66 . Terrain Rammed . | . . . . . . . Walls Destroyed . | . . . . . . . Machines Disabled . | . . . . . . . Actions | -11 -10 -10 -10 -9 -6 -6 --------- Run | Yrd Mat Min Sub Scr Fac Ext Total 3873 | 87 718 589 111 939 541 888 Wait 190 | 7 37 29 . . 79 38 Move 3293 | 55 606 521 111 922 367 711 Hop . | . . . . . . . Pick Up 38 | 7 12 2 . 3 8 6 Fast Attach 46 | 8 8 . . 2 7 21 Attach 27 | 1 1 2 . 1 16 6 Detach 11 | 2 1 . . 3 4 1 Swap 24 | . 9 2 . 2 5 6 Drop 28 | . 9 . . 6 2 11 Fire 195 | 7 35 33 . . 48 72 Melee . | . . . . . . . Ram . | . . . . . . . Kick . | . . . . . . . Crush 5 | . . . . . 5 . Escape Stasis 16 | . . . . . . 16 Rewire . | . . . . . . . Trap . | . . . . . . . Miscellaneous . | . . . . . . . Route ------- -11/Scrapyard -10/Materials (discovered 3 exits: *Mat x2 / *Min) -10/Mines (discovered 3 exits: *Mat x2 / *Sub) -10/Subcaves -9/Scraptown -6/Factory -6/Extension History --------- Turn | Location | Event 20 | -11/Scrapyard | Discovered new exit (range 16) 100 | -11/Scrapyard | Entered Materials 264 | -10/Materials | Discovered new exit (range 13) 317 | -10/Materials | Build established: Mutant 673 | -10/Materials | Discovered new exit (range 6) 820 | -10/Materials | Discovered new exit (range 10) 834 | -10/Materials | Identified exit to Materials 885 | -10/Materials | Identified exit to Mines 1009 | -10/Materials | Entered Mines 1048 | -10/Mines | Learned location of Storage (-9) 1535 | -10/Mines | Core integrity fell below 50% 1591 | -10/Mines | Discovered new exit (range 6) 1598 | -10/Mines | Identified exit to Subcaves 1619 | -10/Mines | Discovered exit to Materials (range 7) 1718 | -10/Mines | Discovered exit to Materials (range 10) 1883 | -10/Mines | Entered Subcaves 1884 | -10/Subcaves | Approached by a straggling Scientist 1997 | -10/Subcaves | Scientist uncovered a shortcut to Scraptown 1998 | -10/Subcaves | Identified exit to Scraptown 2039 | -10/Subcaves | Entered Scraptown 2799 | -9/Scraptown | Discovered new exit (range 3) 2804 | -9/Scraptown | Identified exit to Factory 3039 | -9/Scraptown | Visited Comm Corps 3269 | -9/Scraptown | Visited Cyclists 3454 | -9/Scraptown | Visited Symbiants 3504 | -9/Scraptown | Visited SPCMW 3604 | -9/Scraptown | Visited Shadow of the Wyrm 3694 | -9/Scraptown | Visited Cave Peace 3834 | -9/Scraptown | Learned location of Extension (-6) 4119 | -9/Scraptown | Entered Factory 4119 | -6/Factory | Evolved 8 slots: Power x1, Propulsion x2, Utility x3, Weapon x2 4413 | -6/Factory | Build established: Skirmisher 4553 | -6/Factory | Lost 3 parts (1p1u1w) 4735 | -6/Factory | Garrison activated, responded to threat 4787 | -6/Factory | Lost 3 parts (1n2w) 4965 | -6/Factory | Build established: Scavenger-Skirmisher 5002 | -6/Factory | Discovered new exit (range 10) 5014 | -6/Factory | Identified exit to Extension 5016 | -6/Factory | Entered Extension 5126 | -6/Extension | Lost 5 parts (1p3n1u) 5433 | -6/Extension | Rescued a captive Derelict 5435 | -6/Extension | Rescued a captive Derelict 5656 | -6/Extension | Lost 3 parts (3w) 5691 | -6/Extension | Disrupted transfer network 5700 | -6/Extension | Rescued a captive Derelict 5892 | -6/Extension | Lost 5 parts (2p1n1u1w) 6481 | -6/Extension | Spotted B-75 Beast 6485 | -6/Extension | Core integrity fell below 50% 6491 | -6/Extension | Spotted B-75 Beast 6511 | -6/Extension | Core integrity fell below 20% 6514 | -6/Extension | Destroyed by B-75 Beast with Heavy Machine Gun Last Messages --------------- 06248_ T-07 Excavator enters Transfer Station. 06251_ U-05 Engineer exits Transfer Station. 06255_ K-01 Serf exits Transfer Station. 06255_ R-10 Processor exits Transfer Station. 06402_ Slug penetrates Wall. 06413_ Acquired 15 matter. 06481_ Carbon-fiber Leg destroyed. 06481_ Hpw. Shock Rifle destroyed. 06488_ Machine disabled. 06494_ Arm. Leg destroyed. 06497_ Imp. Deuterium Engine destroyed. 06497_ Carbon-fiber Leg destroyed. 06503_ Lgt. Fission Core destroyed. 06503_ Gauss Rifle destroyed. 06505_ U-05 Engineer builds a Wall. 06506_ Lgt. Treads destroyed. 06506_ Flak Gun destroyed. 06506_ System Restoration Module destroyed. 06506_ Mni. Assault Cannon destroyed. 06512_ U-05 Engineer builds a Wall. Map ----- +----------------------------------------------------+ | #??###### % ##???????????????????? | | #?####### *!!=*%% % ##???????????????????? | | ######### %% !!%=% ! % ##???????????????????? | | ####*==## !!!%!|%%!!!= "% ##???????????????????? | | ==*%%!%%% % %!##########%" ##???????????????????? | | #### % ############ ####" #????????????????????? | | ################??###??# #????????????????????? | | ??#######????????####### #????????????????????? | | ?????????????????# # #????????????????????? | | ?????????????????# + #????????????????????? | | ?????????????????# # #????????????????????? | | ?????????????????# # #????????????????????? | | ?????????????????####+## #????????????????????? | | ????????????????????# #????????????????????? | | ????????????????????# #????????????????????? | | ????????????????????# #????????????????????? | | ????????????????????#######%#????????????????????? | | ??????????????????????????#%#????????????????????? | | ??????????????????????????# #????????????????????? | | ????????????????????????###%#???#??#?????????????? | | ????????????????????????###%### ## ### ##????????? | | ???????????????????????##%u " Y Y "" ""#???????? | | ???????????????????????##u% " " #???????? | | ???????????????????????##% R #???????? | | ????????????????????????# R #???????? | | ????????????????????????#@ #???????? | | ??????????????????????? ??? | | ????????????????????? ??? | | ??????????????????? ???? | | ????????????????? BB ???? | | ??????????????? R R BB BB ????? | | ??????????????########### BB ####????? | | ????????????????????????# #???????? | | ????????????????????????# #???????? | | ????????????????????????# #???????? | | ????????????????????????# #???????? | | ?????????????????????????#####T#"""#######???????? | | ??????????????????????????????##?????????????????? | | ?????????????????????????????????????????????????? | | | | | | | | | | | | | | | | | | | | | | | +----------------------------------------------------+ Best States ------------- Heat Dissipation 56 Energy Generation 32 Energy Capacity 700 Matter Stores 300 Matter Capacity 300 Sight Range 22 Robot Scan Range 15 Terrain Scan Range 16 Terrain Scan Density 10 Armor Coverage 150 Evasion (%) 42 Recoil Reduction 4 Item Schematics ----------------- None Robot Schematics ------------------ None Fabricated ------------ Nothing Repaired ---------- Nothing Studied --------- None Alien Tech Used ----------------- None Achievements -------------- None Challenges ------------ None Game ------ Seed ThermicDoorLoader Manual? 0 Play Time 00:47:32 Cumulative 75.5 hours Start 2026.08.17 @ 18:37:43 End 2026.08.17 @ 19:28:31 Sessions 1 Manual Loads 0 Difficulty Rogue Special Mode None Game No. 70 Rogue 68 Adventurer 2 Explorer 0 Win Type - Total 0 Types 0/0/0/0/0/0/0/0/0/0 Lore% 42 Gallery% 34 Achievement% 28 Wizard Run 0 Options --------- Layout 0 ASCII 0 Keyboard 0 Movement Mouse Keybinds 0 Fullscreen 2 Font 24/Smallcaps Map View 76x50 Zoom Use 0% Tactical HUD 1 Map Filters NONE Filters NONE Steam 1 RUN: 0f92aa2b-a3e9-4ae5-ac06-908bb5804a25